fUSD/lending_fUSD_20240527
["ID","MTS","AMOUNT","RATE_DAILY","PERIOD"]
[328094158,1716845450303,-5749.97,0.00030136,6]
[328094159,1716845450312,-907.2,0.00030136,6]
[328094160,1716845450321,-5749.97,0.00030136,6]
[328094161,1716845450331,-647.12097636,0.00030136,6]
[328094162,1716845450340,-907.2,0.00030136,6]
[328094163,1716845450349,-2985.67656439,0.00030136,6]
[328094164,1716845450373,-371.11937564,0.00030136,6]
[328094165,1716845450395,-2393.17405997,0.00030136,6]
[328094166,1716845450405,-907.2,0.00030136,6]
[328094167,1716845450415,-5749.97,0.00030136,6]
[328094168,1716845450424,-907.2,0.00030136,6]
[328094169,1716845450433,-3586.76029861,0.00030136,6]
[328094170,1716845450445,-278.88464835,0.00030136,6]
[328094171,1716845450463,-1884.32505304,0.00030136,6]
[328094172,1716845450472,-5749.97,0.00030136,6]
[328094173,1716845450483,-907.2,0.00030136,6]
[328094174,1716845450492,-907.2,0.00030136,6]
[328094175,1716845450501,-5749.97,0.00030136,6]
[328094176,1716845450510,-907.2,0.00030136,6]
[328094177,1716845450519,-5749.97,0.00030136,6]
[328094178,1716845450531,-5749.97,0.00030136,6]
[328094179,1716845450542,-500.0,0.00030136,6]
[328094180,1716845450552,-500.0,0.00030136,6]
[328094181,1716845450561,-500.0,0.00030136,6]
[328094182,1716845450570,-545.90066814,0.00030136,6]
[328094183,1716845450579,-500.0,0.00030136,6]
[328094184,1716845450591,-500.0,0.00030136,6]
[328094185,1716845450600,-500.0,0.00030136,6]
[328094186,1716845450609,-500.0,0.00030136,6]
[328094187,1716845450618,-500.0,0.00030136,6]
[328094188,1716845450627,-500.0,0.00030136,6]
[328094189,1716845450636,-1572.93,0.00030136,6]
[328094190,1716845450645,-500.0,0.00030136,6]
[328094191,1716845450654,-500.0,0.00030136,6]
[328094192,1716845450663,-1572.93,0.00030136,6]
[328094193,1716845450672,-500.0,0.00030136,6]
[328094194,1716845450681,-500.0,0.00030136,6]
[328094195,1716845450690,-500.0,0.00030136,6]
[328094196,1716845450699,-500.0,0.00030136,6]
[328094197,1716845450708,-500.0,0.00030136,6]
[328094198,1716845450719,-1572.93,0.00030136,6]
[328094199,1716845450729,-500.0,0.00030136,6]
[328094200,1716845450738,-500.0,0.00030136,6]
[328094201,1716845450747,-1572.93,0.00030136,6]
[328094202,1716845450757,-500.0,0.00030136,6]
[328094203,1716845450765,-229.57,0.00030136,6]
[328094204,1716845450775,-500.0,0.00030136,6]
[328094205,1716845450784,-500.0,0.00030136,6]
[328094206,1716845450794,-1572.93,0.00030136,6]
[328094207,1716845450803,-500.0,0.00030136,6]
[328094208,1716845450811,-500.0,0.00030136,6]
[328094209,1716845450820,-1572.93,0.00030136,6]
[328094210,1716845450829,-424.54987041,0.00030136,6]
[328094211,1716845450839,-2164.21,0.00030136,6]
[328094212,1716845450848,-500.0,0.00030136,6]
[328094213,1716845450857,-500.0,0.00030136,6]
[328094214,1716845450866,-1572.93,0.00030136,6]
[328094215,1716845450875,-2164.21,0.00030136,6]
[328094216,1716845450884,-500.0,0.00030136,6]
[328094217,1716845450893,-500.0,0.00030136,6]
[328094218,1716845450903,-2164.21,0.00030136,6]
[328094219,1716845450912,-500.0,0.00030136,6]
[328094220,1716845450921,-500.0,0.00030136,6]
[328094221,1716845450930,-1572.93,0.00030136,6]
[328094222,1716845450940,-2164.21,0.00030136,6]
[328094223,1716845450949,-500.0,0.00030136,6]
[328094224,1716845450957,-162.86,0.00030136,6]
[328094225,1716845450966,-1572.93,0.00030136,6]
[328094226,1716845450975,-2164.21,0.00030136,6]
[328094227,1716845450986,-500.0,0.00030136,6]
[328094228,1716845450995,-1572.93,0.00030136,6]
[328094229,1716845451004,-500.0,0.00030136,6]
[328094230,1716845451012,-2164.21,0.00030136,6]
[328094231,1716845451022,-1572.93,0.00030136,6]
[328094232,1716845451030,-500.0,0.00030136,6]
[328094233,1716845451039,-2164.21,0.00030136,6]
[328094234,1716845451050,-500.0,0.00030136,6]
[328094235,1716845451059,-612.36,0.00030136,6]
[328094236,1716845451068,-500.0,0.00030136,6]
[328094237,1716845451077,-500.0,0.00030136,6]
[328094238,1716845451091,-500.0,0.00030136,6]
[328094239,1716845451101,-500.0,0.00030136,6]
[328094240,1716845451110,-151.0,0.00030136,7]
[328094241,1716845451120,-500.0,0.00030136,6]
[328094242,1716845451129,-500.0,0.00030136,6]
[328094243,1716845451139,-500.0,0.00030136,6]
[328094244,1716845451148,-500.0,0.00030136,6]
[328094245,1716845451159,-500.0,0.00030136,6]
[328094246,1716845451169,-500.0,0.00030136,6]
[328094247,1716845451178,-500.0,0.00030136,6]
[328094248,1716845451187,-500.0,0.00030136,6]
[328094249,1716845451197,-500.0,0.00030136,6]
[328094250,1716845451207,-500.0,0.00030136,6]
[328094251,1716845451216,-1116.02,0.00030136,6]
[328094252,1716845451226,-500.0,0.00030136,6]
[328094253,1716845451236,-500.0,0.00030136,6]
[328094254,1716845451245,-1116.02,0.00030136,6]
[328094255,1716845451254,-500.0,0.00030136,6]
[328094256,1716845451264,-1116.02,0.00030136,6]
[328094257,1716845451273,-500.0,0.00030136,6]
[328094258,1716845451283,-500.0,0.00030136,6]
[328094259,1716845451294,-746.46,0.00030136,6]
[328094260,1716845451303,-500.0,0.00030136,6]
[328094261,1716845451312,-1116.02,0.00030136,6]
[328094262,1716845451322,-500.0,0.00030136,6]
[328094263,1716845451332,-500.0,0.00030136,6]
[328094264,1716845451341,-1116.02,0.00030136,6]
[328094265,1716845451350,-500.0,0.00030136,6]
[328094266,1716845451359,-500.0,0.00030136,6]
[328094267,1716845451368,-746.46,0.00030136,6]
[328094268,1716845451378,-1116.02,0.00030136,6]
[328094269,1716845451387,-304.84399775,0.00030136,6]
[328094270,1716845451397,-500.0,0.00030136,6]
[328094271,1716845451406,-1116.02,0.00030136,6]
[328094272,1716845451415,-746.46,0.00030136,6]
[328094273,1716845451425,-500.0,0.00030136,6]
[328094274,1716845451435,-1116.02,0.00030136,6]
[328094275,1716845451445,-746.46,0.00030136,6]
[328094276,1716845451456,-500.0,0.00030136,6]
[328094277,1716845451466,-1116.02,0.00030136,6]
[328094278,1716845451475,-746.46,0.00030136,6]
[328094279,1716845451485,-500.0,0.00030136,6]
[328094280,1716845451494,-746.46,0.00030136,6]
[328094281,1716845451503,-1116.02,0.00030136,6]
[328094282,1716845451512,-500.0,0.00030136,6]
[328094283,1716845451522,-746.46,0.00030136,6]
[328094284,1716845451533,-1116.02,0.00030136,6]
[328094285,1716845451544,-500.0,0.00030136,6]
[328094286,1716845451553,-746.46,0.00030136,6]
[328094287,1716845451562,-500.0,0.00030136,6]
[328094288,1716845451572,-500.0,0.00030136,6]
[328094289,1716845451582,-1536.25,0.00030136,6]
[328094290,1716845451592,-500.0,0.00030136,6]
[328094291,1716845451602,-746.46,0.00030136,6]
[328094292,1716845451611,-500.0,0.00030136,6]
[328094293,1716845451621,-500.0,0.00030136,6]
[328094294,1716845451631,-1536.25,0.00030136,6]
[328094295,1716845451641,-500.0,0.00030136,6]
[328094296,1716845451650,-746.46,0.00030136,6]
[328094297,1716845451660,-500.0,0.00030136,6]
[328094298,1716845451669,-300.6,0.00030136,6]
[328094299,1716845451679,-1536.25,0.00030136,6]
[328094300,1716845451688,-500.0,0.00030136,6]
[328094301,1716845451697,-746.46,0.00030136,6]
[328094302,1716845451706,-500.0,0.00030136,6]
[328094303,1716845451715,-1536.25,0.00030136,6]
[328094304,1716845451726,-252.15869054,0.00030136,6]
[328094305,1716845451736,-746.46,0.00030136,6]
[328094306,1716845451746,-500.0,0.00030136,6]
[328094307,1716845451756,-1536.25,0.00030136,6]
[328094308,1716845451765,-500.0,0.00030136,6]
[328094309,1716845451775,-746.46,0.00030136,6]
[328094310,1716845451787,-500.0,0.00030136,6]
[328094311,1716845451797,-1536.25,0.00030136,6]
[328094312,1716845451807,-500.0,0.00030136,6]
[328094313,1716845451818,-1536.25,0.00030136,6]
[328094314,1716845451828,-500.0,0.00030136,6]
[328094315,1716845451838,-500.0,0.00030136,6]
[328094316,1716845451847,-746.46,0.00030136,6]
[328094317,1716845451857,-1536.25,0.00030136,6]
[328094318,1716845451866,-746.46,0.00030136,6]
[328094319,1716845451876,-500.0,0.00030136,6]
[328094320,1716845451885,-538.61931612,0.00030136,6]
[328094321,1716845451896,-3207.4,0.00030136,6]
[328094322,1716845451907,-3207.4,0.00030136,6]
[328094323,1716845451916,-3207.4,0.00030136,6]
[328094324,1716845451925,-3207.4,0.00030136,6]
[328094325,1716845451935,-3207.4,0.00030136,6]
[328094326,1716845451946,-3207.4,0.00030136,6]
[328094327,1716845451955,-3207.4,0.00030136,6]
[328094328,1716845451965,-924.21,0.00030136,6]
[328094329,1716845451975,-2853.39,0.00030136,6]
[328094330,1716845451984,-924.21,0.00030136,6]
[328094331,1716845451993,-2853.39,0.00030136,6]
[328094332,1716845452002,-1536.25,0.00030136,6]
[328094333,1716845452013,-2853.39,0.00030136,6]
[328094334,1716845452023,-924.21,0.00030136,6]
[328094335,1716845452033,-1034.97,0.00030136,6]
[328094336,1716845452042,-1536.25,0.00030136,6]
[328094337,1716845452053,-2853.39,0.00030136,6]
[328094338,1716845452062,-924.21,0.00030136,6]
[328094339,1716845452072,-1034.97,0.00030136,6]
[328094340,1716845452082,-1536.25,0.00030136,6]
[328094341,1716845452093,-924.21,0.00030136,6]
[328094342,1716845452103,-2853.39,0.00030136,6]
[328094343,1716845452112,-1536.25,0.00030136,6]
[328094344,1716845452123,-924.21,0.00030136,6]
[328094345,1716845452132,-1034.97,0.00030136,6]
[328094346,1716845452141,-2853.39,0.00030136,6]
[328094347,1716845452151,-924.21,0.00030136,6]
[328094348,1716845452162,-500.0,0.00030136,6]
[328094349,1716845452171,-1536.25,0.00030136,6]
[328094350,1716845452180,-1034.97,0.00030136,6]
[328094351,1716845452190,-2853.39,0.00030136,6]
[328094352,1716845452200,-500.0,0.00030136,6]
[328094353,1716845452210,-924.21,0.00030136,6]
[328094354,1716845452219,-1034.97,0.00030136,6]
[328094355,1716845452229,-2853.39,0.00030136,6]
[328094356,1716845452238,-500.0,0.00030136,6]
[328094357,1716845452248,-924.21,0.00030136,6]
[328094358,1716845452258,-3207.4,0.00030136,6]
[328094359,1716845452267,-1536.25,0.00030136,6]
[328094360,1716845452277,-2853.39,0.00030136,6]
[328094361,1716845452286,-924.21,0.00030136,6]
[328094362,1716845452296,-3207.4,0.00030136,6]
[328094363,1716845452305,-1536.25,0.00030136,6]
[328094364,1716845452315,-1034.97,0.00030136,6]
[328094365,1716845452324,-2853.39,0.00030136,6]
[328094366,1716845452334,-924.21,0.00030136,6]
[328094367,1716845452343,-3207.4,0.00030136,6]
[328094368,1716845452353,-500.0,0.00030136,6]
[328094369,1716845452362,-434.21795456,0.00030136,6]
[328094371,1716845551058,177.76,0.00027564,120]
[328094382,1716846427144,-155.0,0.00013969,2]
[328094383,1716846427164,-86.17127058,0.0001397,2]
[328094388,1716846632318,-1076.81030007,0.00013934,2]
[328094389,1716846632409,-106.56746125,0.00013934,2]
[328094390,1716846632418,-2729.4232973,0.0001397,2]
[328094391,1716846632428,-160.59,0.00013973,2]
[328094392,1716846632437,-179.4,0.00013973,2]
[328094393,1716846632446,-1412.27528136,0.00016312,2]
[328094394,1716846632455,-150.0,0.00017151,2]
[328094395,1716846632464,-155.0,0.00017169,2]
[328094396,1716846632473,-170.18065551,0.00017169,2]
[328094397,1716846632483,-818.88979131,0.0001717,2]
[328094398,1716846632493,-388.05362397,0.0001717,2]
[328094399,1716846632502,-204.91045887,0.0001717,2]
[328094400,1716846632511,-157.77334761,0.0001717,2]
[328094401,1716846632525,-1064.16497992,0.0001717,2]
[328094402,1716846632534,-325.92527891,0.0001717,2]
[328094403,1716846632543,-155.66318784,0.0001717,2]
[328094404,1716846632552,-199.85616415,0.0001717,2]
[328094405,1716846632562,-155.32441655,0.0001717,2]
[328094406,1716846632572,-528.98539506,0.0001717,2]
[328094407,1716846632581,-3300.10952867,0.0001717,2]
[328094408,1716846632592,-200.63522057,0.0001717,2]
[328094409,1716846632601,-157.23569562,0.0001717,2]
[328094410,1716846632612,-143.50944756,0.0001717,2]
[328094411,1716846632621,-183.40484966,0.00017171,2]
[328094412,1716846632633,-800.6658413,0.00017171,2]
[328094413,1716846632643,-472.14322502,0.00017171,2]
[328094414,1716846632657,-289.39426598,0.00017171,2]
[328094415,1716846632668,-4465.99103565,0.00017171,2]
[328094416,1716846632679,-10612.82063427,0.00017171,2]
[328094417,1716846632704,-3415.57845701,0.00017171,2]
[328094418,1716846632715,-679.0,0.00017171,2]
[328094419,1716846632726,-6828.9003,0.00017171,2]
[328094420,1716846632739,-6055.9025272,0.00017171,2]
[328094421,1716846632752,-22559.1213533,0.00017171,2]
[328094422,1716846632763,-7239.81920403,0.00017171,2]
[328094423,1716846632772,-346.63871635,0.00017172,2]
[328094424,1716846632781,-713.2735703,0.00017172,2]
[328094425,1716846632791,-2.58957414,0.00017172,2]
[328094428,1716846632831,-497.40042586,0.00017172,2]
[328094429,1716846632840,-181.77,0.00017172,2]
[328094431,1716846632849,-217.23789946,0.00021189,2]
[328094433,1716846632860,-265.13210054,0.00021189,2]
[328094434,1716846632869,-166.23,0.00021918,2]
[328094436,1716846632878,-733.70416849,0.00022,7]
[328094438,1716846632887,-321.88,0.00022981,2]
[328094440,1716846632896,-250.0,0.00023,2]
[328094442,1716846632906,-590.5,0.00023002,2]
[328094443,1716846632915,-290.04,0.0002307,2]
[328094445,1716846632924,-2000.0,0.00023107,2]
[328094446,1716846632933,-300.84,0.00023155,2]
[328094447,1716846632942,-250.0,0.00023179,2]
[328094448,1716846632951,-507.32,0.00023188,2]
[328094449,1716846632960,-482.37,0.00023453,2]
[328094450,1716846632969,-790.35,0.00023477,2]
[328094451,1716846632979,-790.35,0.00023483,2]
[328094452,1716846632987,-790.35,0.00023489,2]
[328094453,1716846632997,-790.35,0.00023495,2]
[328094454,1716846633006,-790.35,0.00023501,2]
[328094455,1716846633015,-796.42,0.00023507,2]
[328094456,1716846633024,-790.35,0.00023507,2]
[328094457,1716846633033,-790.35,0.00023514,2]
[328094458,1716846633042,-790.35,0.0002352,2]
[328094459,1716846633051,-790.35,0.00023526,2]
[328094460,1716846633060,-790.35,0.00023532,2]
[328094461,1716846633070,-790.35,0.00023538,2]
[328094462,1716846633079,-790.35,0.00023544,2]
[328094463,1716846633088,-790.35,0.00023551,2]
[328094464,1716846633097,-790.35,0.00023557,2]
[328094465,1716846633106,-790.35,0.00023563,2]
[328094466,1716846633115,-790.35,0.00023569,2]
[328094467,1716846633124,-790.35,0.00023575,2]
[328094468,1716846633134,-790.35,0.00023581,2]
[328094469,1716846633143,-790.35,0.00023587,2]
[328094470,1716846633152,-790.35,0.00023594,2]
[328094471,1716846633161,-433.26102806,0.00024,2]
[328094472,1716846633172,-472.45726553,0.00024,2]
[328094473,1716846633181,-1036.66794683,0.000241,2]
[328094474,1716846633190,-395.00937931,0.0002421,2]
[328094475,1716846633199,-176.54539458,0.000245,2]
[328094476,1716846633208,-154.19642179,0.00024505,2]
[328094477,1716846633217,-154.19642179,0.00024633,2]
[328094478,1716846633226,-155.38671263,0.00024662,2]
[328094479,1716846633236,-156.5232281,0.00024961,2]
[328094480,1716846633247,-154.84046004,0.00024982,2]
[328094481,1716846633258,-155.38671263,0.00024986,2]
[328094482,1716846633267,-155.0,0.00025,2]
[328094483,1716846633278,-155.79250774,0.00025,2]
[328094484,1716846633287,-155.0,0.00025,2]
[328094485,1716846633296,-224.3459268,0.00025,2]
[328094486,1716846633307,-3156.15107272,0.00025,2]
[328094487,1716846633317,-1273.2251464,0.00025,2]
[328094488,1716846633326,-927.63905296,0.00025,2]
[328094489,1716846633334,-155.0,0.00025,2]
[328094490,1716846633345,-155.0,0.00025,2]
[328094491,1716846633355,-155.32910615,0.00025,2]
[328094492,1716846633364,-156.5232281,0.00025134,2]
[328094493,1716846633373,-157.02522589,0.0002521,2]
[328094494,1716846633384,-155.01759861,0.00025406,2]
[328094495,1716846633395,-180.0,0.00025489,2]
[328094496,1716846633404,-153.33599507,0.00025621,2]
[328094497,1716846633414,-155.38671263,0.00025624,2]
[328094498,1716846633423,-169.00998554,0.00025667,2]
[328094499,1716846633432,-153.33599508,0.00025709,2]
[328094500,1716846633441,-482.37,0.00025717,2]
[328094501,1716846633451,-590.5,0.00025742,2]
[328094502,1716846633460,-155.01759861,0.00025753,2]
[328094503,1716846633469,-158.87328605,0.00025787,2]
[328094504,1716846633478,-218.04,0.0002589,2]
[328094505,1716846633487,-300.84,0.0002605,2]
[328094506,1716846633496,-150.0,0.00026079,2]
[328094507,1716846633505,-155.01759861,0.0002617,2]
[328094508,1716846633517,-157.02522589,0.00026234,2]
[328094509,1716846633530,-54807.71,0.00026301,2]
[328094510,1716846633539,-156.96936253,0.00026319,2]
[328094511,1716846633548,-157.02522589,0.00026417,2]
[328094512,1716846633557,-796.42,0.00026445,2]
[328094513,1716846633568,-157.02522589,0.00026786,2]
[328094514,1716846633577,-67242.75801652,0.000268,2]
[328094515,1716846633590,-17243.63708399,0.000268,2]
[328094516,1716846633601,-3002.17711625,0.000268,2]
[328094517,1716846633613,-389.84087267,0.000268,2]
[328094518,1716846633625,-697.0883778,0.000268,2]
[328094519,1716846633636,-2777.7159202,0.000268,2]
[328094520,1716846633648,-711.72882134,0.000268,2]
[328094521,1716846633659,-3799.68030269,0.000268,2]
[328094522,1716846633670,-105845.33762932,0.000268,2]
[328094523,1716846633691,-551.24148495,0.000268,2]
[328094524,1716846633707,-279.80970718,0.000268,2]
[328094525,1716846633719,-38535.6315429,0.000268,2]
[328094526,1716846633730,-306.20467746,0.000268,2]
[328094527,1716846633741,-483.71393226,0.000268,2]
[328094530,1716846638330,-3385.96953395,0.000268,2]
[328094531,1716846638434,-1772.28280069,0.000268,2]
[328094532,1716846638534,-1599.77159946,0.000268,2]
[328094533,1716846638546,-2390.55985511,0.000268,2]
[328094534,1716846638639,-3304.7964,0.000268,2]
[328094535,1716846638651,-4962.52051354,0.000268,2]
[328094536,1716846638689,-3730.36434643,0.000268,2]
[328094537,1716846638701,-8449.0,0.000268,2]
[328094538,1716846638714,-3209.94494954,0.000268,2]
[328094539,1716846638727,-4895.72075946,0.000268,2]
[328094540,1716846638744,-6101.07978838,0.000268,2]
[328094541,1716846638768,-529.03743777,0.000268,2]
[328094542,1716846638780,-722.29368416,0.000268,2]
[328094543,1716846638844,-5731.89280292,0.000268,2]
[328094544,1716846638856,-996.7313497,0.000268,2]
[328094581,1716846641363,-2229.8616526,0.000268,2]
[328094582,1716846642741,-39672.40174685,0.000268,2]
[328094619,1716846643650,-25092.77331961,0.000268,2]
[328094620,1716846643660,-917.26797353,0.00026854,2]
[328094621,1716846643669,-156.5232281,0.00026954,2]
[328094622,1716846643679,-4018.79216408,0.00027,2]
[328094623,1716846643689,-173.0,0.00027,2]
[328094624,1716846643699,-58.60822615,0.00027123,2]
[328094625,1716846644422,-3386.59177385,0.00027123,2]
[328094626,1716846644433,-155.38671263,0.000272,2]
[328094627,1716846644443,-500.0,0.00027564,2]
[328094628,1716846644454,-1200.46047298,0.00027564,2]
[328094629,1716846644464,-17875.96408672,0.00027564,2]
[328094630,1716846644477,-7490.21370889,0.00027564,2]
[328094631,1716846644488,-547.59336367,0.00027564,2]
[328094632,1716846644500,-306.856,0.00027564,2]
[328094637,1716846646594,-11287.70489545,0.00027564,2]
[328094638,1716846646604,-917.26797351,0.00027772,2]
[328094639,1716846646615,-482.37,0.00027981,2]
[328094640,1716846646625,-157.02522589,0.00028233,2]
[328094641,1716846646636,-590.5,0.00028481,2]
[328094642,1716846646646,-157.02522589,0.00028498,2]
[328094643,1716846646656,-155.38671263,0.00028524,2]
[328094644,1716846646667,-955.56684863,0.00028629,2]
[328094645,1716846646677,-174.0,0.00028665,2]
[328094646,1716846646688,-151.36,0.00028688,2]
[328094647,1716846646699,-917.26797351,0.00028691,2]
[328094648,1716846646711,-155.0,0.00028697,2]
[328094649,1716846646951,-1339.6009445,0.00028698,2]
[328094650,1716846646967,-11180.0,0.00028698,2]
[328094651,1716846646978,-862.600002,0.00028698,2]
[328094652,1716846646990,-710.24021506,0.00028698,2]
[328094675,1716847831549,-365.94710324,0.00013914,2]
[328094677,1716847831559,-31.62080987,0.00013914,2]
[328094689,1716847831671,-123.37919013,0.00013914,2]
[328094690,1716847831681,-177.25042697,0.00013915,2]
[328094691,1716847831697,-225.81709013,0.00013915,2]
[328094692,1716847831707,-155.0,0.00013916,2]
[328094693,1716847831717,-617.05534327,0.00013917,2]
[328094694,1716847831728,-2592.31585,0.00013917,2]
[328094695,1716847831740,-7410.330545,0.00013917,2]
[328094696,1716847831813,-8895.2763859,0.00013917,2]
[328094697,1716847831823,-152.89,0.00013973,2]
[328094698,1716847831832,-158.12,0.00013973,2]
[328094699,1716847831845,-299.99,0.00019726,7]
[328094700,1716847831855,-771.14875867,0.00021028,2]
[328094701,1716847831865,-4419.0,0.000227,3]
[328094702,1716847831874,-797.0,0.000227,3]
[328094703,1716847831883,-1000.0,0.00023138,2]
[328094704,1716847831892,-455.86,0.00023284,2]
[328094705,1716847831901,-150.67887339,0.00024743,2]
[328094706,1716847831911,-188.68808195,0.00024848,2]
[328094707,1716847831921,-155.94404788,0.00024905,2]
[328094708,1716847831930,-250.0,0.00024948,2]
[328094709,1716847831939,-155.0,0.00025,2]
[328094711,1716847831949,-1050.0,0.00025,2]
[328094712,1716847831958,-155.0,0.00025003,2]
[328094714,1716847831967,-150.67887339,0.00025004,2]
[328094716,1716847831977,-188.68808195,0.00025015,2]
[328094718,1716847831986,-834.25577502,0.0002503,4]
[328094720,1716847831995,-155.55968036,0.00025033,2]
[328094722,1716847832005,-291.31,0.00025051,2]
[328094724,1716847832014,-291.31,0.00025058,2]
[328094726,1716847832023,-291.31,0.00025064,2]
[328094728,1716847832033,-291.31,0.00025071,2]
[328094730,1716847832042,-291.31,0.00025078,2]
[328094731,1716847832051,-291.31,0.00025084,2]
[328094732,1716847832060,-159.24928825,0.0002509,2]
[328094733,1716847832070,-291.31,0.00025091,2]
[328094734,1716847832079,-291.31,0.00025097,2]
[328094735,1716847832088,-241.7,0.00025099,2]
[328094736,1716847832097,-291.31,0.00025104,2]
[328094737,1716847832106,-291.31,0.00025111,2]
[328094738,1716847832116,-250.0,0.00025112,2]
[328094739,1716847832125,-291.31,0.00025117,2]
[328094740,1716847832134,-291.31,0.00025124,2]
[328094741,1716847832146,-291.31,0.0002513,2]
[328094742,1716847832155,-291.31,0.00025137,2]
[328094743,1716847832164,-291.31,0.00025144,2]
[328094744,1716847832174,-291.31,0.0002515,2]
[328094745,1716847832185,-291.31,0.00025157,2]
[328094746,1716847832196,-291.31,0.00025163,2]
[328094747,1716847832210,-291.31,0.0002517,2]
[328094748,1716847832219,-422.76,0.00025173,2]
[328094749,1716847832228,-291.31,0.00025177,2]
[328094750,1716847832240,-157.09040725,0.00025203,2]
[328094751,1716847832250,-658.35,0.0002521,2]
[328094752,1716847832260,-155.87977619,0.00025215,2]
[328094753,1716847832269,-188.68808195,0.0002526,2]
[328094754,1716847832510,-155.94404788,0.00025476,2]
[328094755,1716847832520,-188.68808195,0.00025498,2]
[328094756,1716847832530,-455.86,0.00025548,2]
[328094757,1716847832539,-166.66666666,0.00025575,2]
[328094758,1716847832548,-155.87977619,0.00025882,2]
[328094759,1716847832557,-155.87977619,0.0002591,2]
[328094760,1716847832567,-159.24928827,0.00025951,2]
[328094761,1716847832576,-155.87977619,0.0002597,2]
[328094762,1716847832586,-188.68808195,0.00026144,2]
[328094763,1716847832596,-184.46317164,0.00026169,2]
[328094764,1716847832605,-188.68808195,0.00026316,2]
[328094765,1716847832615,-152.42219693,0.00026371,2]
[328094766,1716847832624,-155.55968036,0.00026484,2]
[328094767,1716847832633,-2813.03132929,0.00026798,2]
[328094768,1716847832643,-1000.0,0.00026799,2]
[328094769,1716847832652,-2858.39340886,0.000268,2]
[328094770,1716847832661,-346.59123551,0.000268,2]
[328094771,1716847832670,-500.0,0.000268,2]
[328094772,1716847832679,-18544.92022092,0.000268,2]
[328094773,1716847832689,-150.67887339,0.0002684,2]
[328094774,1716847832698,-155.87977619,0.00026854,2]
[328094775,1716847832708,-4018.79216408,0.00027,2]
[328094776,1716847832718,-188.68808195,0.00027071,2]
[328094777,1716847832728,-150.67887339,0.00027123,2]
[328094778,1716847832738,-155.87977619,0.00027166,2]
[328094779,1716847832747,-188.68808195,0.00027252,2]
[328094780,1716847832757,-2005.79258683,0.00027261,2]
[328094781,1716847832766,-253.13001085,0.00027261,7]
[328094782,1716847832776,-156.59524905,0.0002736,2]
[328094783,1716847832785,-813.03672237,0.0002739,2]
[328094784,1716847832794,-152.79444414,0.00027395,2]
[328094785,1716847832803,-188.68808195,0.00027421,2]
[328094786,1716847832813,-152.42219693,0.00027474,2]
[328094787,1716847832823,-155.32938529,0.0002757,2]
[328094788,1716847832832,-166.66666668,0.00027732,2]
[328094789,1716847832843,-150.0,0.00027739,2]
[328094790,1716847832853,-455.86,0.00027812,2]
[328094791,1716847832862,-842.01,0.0002811,2]
[328094792,1716847832871,-188.68808195,0.00028114,2]
[328094793,1716847832881,-929.85231126,0.00028122,2]
[328094794,1716847832890,-188.68808195,0.00028212,2]
[328094795,1716847832899,-155.87977619,0.00028231,2]
[328094796,1716847832909,-658.35,0.00028361,2]
[328094797,1716847832918,-3742.1812,0.00028495,2]
[328094798,1716847832927,-27495.5725169,0.00028495,2]
[328094799,1716847832936,-4306.79254812,0.00028495,2]
[328094800,1716847832946,-1000.0,0.00028498,2]
[328094801,1716847832955,-1000.0,0.00028594,2]
[328094802,1716847832964,-2500.0,0.00028594,2]
[328094803,1716847832973,-100000.0,0.00028595,2]